bitfinex/quotes_ETHUSD_20240710
["timestamp","ask_amount","ask_price","bid_price","bid_amount"]
[1720614859731,3.0,3094.3,3093.3,3.29735731]
[1720614859933,3.0,3094.3,3093.4,3.2326]
[1720614860115,3.23155,3094.5,3093.4,6.4652]
[1720614860317,3.23142,3094.7,3093.4,6.4652]
[1720614860318,3.23142,3094.7,3093.4,3.2326]
[1720614860517,3.23134,3094.7,3093.7,3.2323]
[1720614860725,0.5069946,3095.0,3093.8,0.06463894]
[1720614860895,3.23139,3094.7,3093.4,3.2326]
[1720614861242,3.23216,3094.0,3093.0,3.23308]
[1720614861405,3.23126,3094.8,3093.6,3.23245]
[1720614861618,3.2315,3094.6,3093.6,3.23245]
[1720614861995,3.23166,3094.4,3093.5,3.23249]
[1720614862396,3.23166,3094.4,3093.5,6.465]
[1720614862638,3.0,3094.5,3093.5,3.23249]
[1720614862840,3.0,3094.5,3093.6,3.23246]
[1720614863007,3.7380646,3095.0,3093.7,3.29697164]
[1720614863190,3.23128,3094.8,3093.9,3.23215]
[1720614863396,3.23144,3094.6,3093.7,3.23233]
[1720614863838,6.46297,3094.6,3093.5,3.23252]
[1720614863993,3.23191,3094.2,3093.1,3.23291]
[1720614864196,3.23144,3094.6,3093.7,3.23231]
[1720614864738,3.0,3094.5,3093.1,0.77224111]
[1720614865037,6.46386,3094.2,3093.2,3.23282]
[1720614865331,3.23195,3094.1,3093.3,3.2327]
[1720614865533,3.23195,3094.1,3093.1,4.00515111]
[1720614865738,3.23216,3093.9,3092.9,5.52938]
[1720614866044,3.23237,3093.7,3092.9,2.2962]
[1720614866246,3.23239,3093.7,3092.2,5.51171]
[1720614866453,3.23309,3093.1,3092.2,5.51171]
[1720614866615,3.23311,3093.0,3092.2,2.2778]
[1720614866944,3.23447,3091.7,3090.9,2.384]
[1720614867095,3.23383,3092.3,3090.9,2.384]
[1720614867334,7.10616,3092.9,3090.9,2.384]
[1720614867335,3.23484,3091.4,3090.9,2.384]
[1720614867813,3.0,3092.0,3090.3,0.1127762]
[1720614867814,3.23498,3091.3,3090.3,0.1127762]
[1720614868123,3.23518,3091.1,3090.3,0.1127762]
[1720614868322,3.23498,3091.3,3090.3,0.1127762]
[1720614868513,3.2351,3091.1,3090.3,0.1127762]
[1720614868694,3.23498,3091.3,3090.3,0.1127762]
[1720614868895,3.23478,3091.4,3090.3,0.1127762]
[1720614869195,3.2346,3091.6,3090.3,0.1127762]
[1720614869398,3.0,3092.0,3090.7,3.0]
[1720614869635,3.23396,3092.2,3090.8,0.06469609]
[1720614869793,3.23384,3092.3,3091.0,3.23516]
[1720614870007,3.0,3092.2,3091.1,0.06469378]
[1720614870199,3.23385,3092.3,3091.0,3.29985377]
[1720614870442,3.0,3092.2,3091.0,3.29985377]
[1720614870672,3.0,3092.2,3091.1,0.32998538]
[1720614870810,3.0,3092.4,3091.2,0.06469101]
[1720614871237,3.23339,3092.8,3091.2,0.06469101]
[1720614871238,3.23344,3092.7,3091.3,5.61086]
[1720614871562,3.23354,3092.6,3091.4,3.29945433]
[1720614871702,5.70608,3093.8,3091.4,3.29945433]
[1720614871703,3.23377,3092.4,3091.5,0.56754543]
[1720614872425,3.23387,3092.3,3091.5,0.56754543]
[1720614872609,3.23374,3092.4,3091.3,2.376]
[1720614872805,3.23412,3092.1,3091.3,2.376]
[1720614873038,3.23383,3092.3,3091.3,2.376]
[1720614873244,3.23363,3092.5,3091.3,2.44069083]
[1720614873553,3.23332,3092.8,3091.5,6.23467]
[1720614873757,3.23283,3093.3,3091.8,3.23427]
[1720614873928,3.23269,3093.4,3092.2,3.23393]
[1720614874124,3.23283,3093.3,3092.4,2.3472]
[1720614874550,3.7380146,3095.0,3093.7,3.23228]
[1720614874719,3.23174,3094.4,3093.2,2.4954]
[1720614874908,3.23155,3094.5,3093.2,5.72828]
[1720614875253,3.23186,3094.2,3093.2,2.4954]
[1720614875409,3.23209,3094.0,3093.2,2.4954]
[1720614875603,3.23186,3094.2,3093.2,2.4954]
[1720614875604,3.23159,3094.5,3093.2,2.4954]
[1720614875846,3.23155,3094.5,3093.4,3.2326]
[1720614876049,3.23154,3094.5,3093.4,3.2326]
[1720614876246,3.23122,3094.9,3093.5,3.29721386]
[1720614876409,0.5069946,3095.0,3093.5,3.23257]
[1720614876612,3.23164,3094.4,3093.2,5.4954]
[1720614876945,3.23164,3094.4,3093.2,6.691543]
[1720614877152,3.23164,3094.4,3093.3,3.23278]
[1720614877320,3.23185,3094.2,3093.2,6.691543]
[1720614877526,3.23206,3094.1,3093.2,5.4954]
[1720614877723,3.23208,3094.0,3093.2,2.4954]
[1720614878122,3.23224,3093.9,3093.2,2.4954]
[1720614878341,3.23237,3093.7,3093.2,2.4954]
[1720614878547,3.23237,3093.7,3092.6,5.52711]
[1720614878763,3.23237,3093.7,3091.8,3.0]
[1720614878764,9.69729,3093.7,3091.8,5.32]
[1720614878913,3.23304,3093.1,3091.8,2.32]
[1720614879115,3.23354,3092.6,3091.8,2.32]
[1720614879314,3.23364,3092.5,3091.8,2.32]
[1720614881260,3.0,3093.0,3091.9,3.29890193]
[1720614881441,3.2326,3093.5,3092.1,3.23403]
[1720614881632,3.2326,3093.5,3092.3,3.23382]
[1720614881815,3.2326,3093.5,3092.3,3.29848721]
[1720614882021,3.23288,3093.3,3092.4,0.62984872]
[1720614882364,3.23322,3092.9,3092.2,3.0]
[1720614882569,3.23332,3092.8,3091.8,5.875456]
[1720614883538,3.23354,3092.6,3091.8,2.32]
[1720614883740,3.23343,3092.7,3091.8,2.32]
[1720614884265,3.0,3093.1,3091.8,2.32]
[1720614884459,3.23363,3092.5,3091.8,2.32]
[1720614885916,3.23348,3092.7,3091.8,2.32]
[1720614886556,3.23353,3092.6,3091.8,2.32]
[1720614887067,3.23364,3092.5,3091.8,2.875454]
[1720614887271,3.23364,3092.5,3091.8,2.32]
[1720614887637,3.23335,3092.8,3091.8,2.32]
[1720614887833,3.23347,3092.7,3091.8,2.32]
[1720614888227,3.23324,3092.9,3091.8,2.32]
[1720614888429,3.0,3092.8,3091.8,3.198892]
[1720614888665,3.23301,3093.1,3091.9,6.29891156]
[1720614888854,3.23201,3094.1,3092.1,3.23403]
[1720614888855,3.23281,3093.3,3092.1,3.23403]
[1720614889034,3.23281,3093.3,3091.9,3.06468156]
[1720614889035,3.23271,3093.4,3092.4,3.23364]
[1720614889351,3.23233,3093.8,3092.9,3.0]
[1720614889523,3.23211,3094.0,3093.0,2.4112]
[1720614890037,3.23183,3094.3,3093.1,0.04277451]
[1720614890238,3.23133,3094.7,3093.1,3.27576451]
[1720614890239,3.23206,3094.0,3093.1,3.27576451]
[1720614890466,3.23204,3094.1,3093.1,3.27576451]
[1720614890835,3.23187,3094.2,3093.1,6.57331586]
[1720614891129,3.23196,3094.1,3093.4,3.0]
[1720614891333,0.5069946,3095.0,3093.5,0.04261818]
[1720614891334,3.23165,3094.4,3093.5,0.04261818]
[1720614891649,3.23191,3094.2,3093.5,0.04261818]
[1720614891851,3.23196,3094.1,3093.5,0.04261818]
[1720614892054,3.23183,3094.3,3093.3,3.29741713]
[1720614892244,3.23183,3094.3,3093.6,0.04260259]
[1720614892578,3.23183,3094.3,3093.4,0.41958687]
[1720614892928,3.23191,3094.2,3093.4,0.41958687]
[1720614893130,3.23169,3094.4,3093.4,3.65223687]
[1720614893488,3.23138,3094.7,3093.5,6.23252]
[1720614893765,3.23138,3094.7,3093.7,6.46464]
[1720614894656,3.23143,3094.6,3093.7,3.23228]
[1720614895168,3.23138,3094.7,3093.7,3.23228]
[1720614895372,3.23116,3094.9,3094.0,3.23205]
[1720614895554,3.23092,3095.1,3094.1,5.68318]
[1720614895734,3.23108,3095.0,3094.1,2.4513]
[1720614895935,3.23115,3094.9,3094.1,2.4513]
[1720614896216,3.2313,3094.8,3094.1,2.4513]
[1720614896361,3.23145,3094.6,3094.1,2.4513]
[1720614896740,3.23115,3094.9,3094.1,2.4513]
[1720614897060,3.23132,3094.8,3094.1,2.4513]
[1720614897239,6.46236,3094.9,3094.1,2.4513]
[1720614897772,3.23115,3094.9,3094.1,2.4513]
[1720614898269,6.46236,3094.9,3094.1,2.4513]
[1720614898579,3.23117,3094.9,3094.1,2.4513]
[1720614898763,3.23294,3093.2,3092.5,2.2577]
[1720614899076,3.23161,3094.5,3092.5,2.2577]
[1720614899239,3.23281,3093.3,3092.5,2.2577]
[1720614899438,3.2326,3093.5,3092.5,2.806852]
[1720614899772,3.0,3094.0,3092.5,2.806852]
[1720614900078,3.0,3094.0,3092.6,3.2335]
[1720614900236,3.23248,3093.6,3092.6,3.29816251]
[1720614900440,3.23296,3093.2,3092.5,2.806852]
[1720614900781,3.23284,3093.3,3092.5,2.2577]
[1720614900983,3.23243,3093.7,3092.5,5.49132]
[1720614901283,3.23311,3093.0,3092.5,2.2577]
[1720614901485,3.2336,3092.6,3091.8,2.2577]
[1720614901780,3.23321,3092.9,3091.8,2.2577]
[1720614902084,3.0,3093.5,3092.1,3.0]
[1720614902256,3.2325,3093.6,3092.4,2.4625]
[1720614902766,3.2325,3093.6,3092.4,5.69622]
[1720614902962,3.2325,3093.6,3092.5,3.23362]
[1720614903151,10.69164,3094.4,3092.6,3.06465668]
[1720614903485,3.23223,3093.9,3092.8,3.23331]
[1720614903654,3.23195,3094.1,3093.1,3.0]
[1720614903858,3.23206,3094.0,3093.0,3.23309]
[1720614904059,3.23206,3094.0,3093.1,0.06464804]
[1720614904270,3.23186,3094.2,3093.2,2.4625]
[1720614904584,3.23207,3094.0,3093.3,0.5760138]
[1720614904875,3.23207,3094.0,3093.2,2.4625]
[1720614904876,3.23227,3093.8,3093.2,2.4625]
[1720614905178,3.23237,3093.7,3093.2,2.4625]
[1720614905777,3.23291,3093.2,3092.6,2.2761]
[1720614905936,3.23301,3093.1,3092.6,2.2761]
[1720614906138,3.23301,3093.1,3092.4,3.0]
[1720614906139,3.23343,3092.7,3091.9,0.549215]
[1720614906487,3.2327,3093.4,3091.7,3.0]
[1720614906488,3.23382,3092.4,3091.7,3.0]
[1720614906837,3.23385,3092.3,3091.7,3.0]
[1720614907038,3.2337,3092.5,3091.7,3.0]
[1720614907268,3.2333,3092.9,3091.8,0.06468111]
[1720614907540,3.23342,3092.7,3091.9,0.30646811]
[1720614907752,3.0,3093.2,3091.9,0.30646811]
[1720614907955,3.23353,3092.6,3091.9,0.30646811]
[1720614908188,3.23333,3092.8,3092.0,2.2714]
[1720614908357,3.23333,3092.8,3092.0,2.33607483]
[1720614908539,3.23342,3092.7,3092.0,2.2714]
[1720614908761,3.23314,3093.0,3092.0,5.57021324]
[1720614909087,3.23292,3093.2,3092.2,3.23393]
[1720614909251,6.46548,3093.4,3092.3,0.06466564]
[1720614909578,3.23273,3093.4,3092.2,3.23393]
[1720614909736,3.2324,3093.7,3092.3,0.69452448]
[1720614909941,3.23238,3093.7,3092.5,3.23354]
[1720614910142,7.46,3094.2,3092.6,0.06465915]
[1720614910378,3.23245,3093.7,3092.4,3.23366]
[1720614910573,3.23202,3094.1,3092.1,3.0]
[1720614910899,3.23327,3092.9,3092.0,2.2714]
[1720614911192,3.23327,3092.9,3092.1,0.58120581]
[1720614911681,3.23338,3092.8,3092.0,2.2714]
[1720614911883,3.23342,3092.7,3092.0,2.2714]
[1720614912189,3.23327,3092.9,3092.0,2.2714]
[1720614912190,3.23359,3092.6,3092.0,2.2714]
[1720614912885,3.2338,3092.4,3091.5,2.3401]
[1720614913083,3.23384,3092.3,3091.5,5.57473]
[1720614913282,3.23384,3092.3,3091.6,1.304473]
[1720614913596,5.4915,3093.1,3091.6,1.304473]
[1720614913597,3.23356,3092.6,3091.6,1.304473]
[1720614913888,6.46718,3092.6,3091.6,7.539033]
[1720614914043,3.23364,3092.5,3091.6,7.539033]
[1720614914243,3.23375,3092.4,3091.6,7.539033]
[1720614914447,3.23375,3092.4,3091.7,1.3113803]
[1720614915041,3.23391,3092.3,3091.7,1.3113803]
[1720614915243,3.23391,3092.3,3091.5,2.3401]
[1720614916056,3.23399,3092.2,3091.5,2.3401]
[1720614916785,3.23475,3091.5,3090.8,2.4842]
[1720614916953,3.23475,3091.5,3090.9,0.571968]
[1720614917355,6.4695,3091.5,3090.9,0.571968]
[1720614917562,6.4695,3091.5,3090.8,2.4842]
[1720614917563,3.23377,3092.4,3090.8,2.4842]
[1720614917767,3.23562,3090.6,3090.3,0.1127762]
[1720614917956,3.23495,3091.3,3090.3,0.1127762]
[1720614917957,6.47164,3090.4,3090.3,0.1127762]
[1720614918566,18.20898,3090.4,3090.3,0.1127762]
[1720614918801,3.23645,3089.8,3088.4,5.73242129]
[1720614918982,3.23729,3089.1,3088.4,4.13859142]
[1720614919142,3.23722,3089.1,3088.4,2.49454129]
[1720614919484,3.0,3089.7,3088.4,0.00154129]
[1720614919689,3.23759,3088.8,3088.4,0.00154129]
[1720614919870,3.23696,3089.4,3088.4,0.00154129]
[1720614919871,3.0,3089.4,3088.4,0.00154129]
[1720614920069,3.23762,3088.7,3088.4,0.00154129]
[1720614920272,3.23779,3088.6,3088.4,0.00154129]
[1720614920481,6.47562,3088.5,3088.4,0.00154129]
[1720614920684,3.23781,3088.5,3088.4,0.00154129]
[1720614920993,3.23713,3089.2,3088.4,0.00154129]
[1720614921150,3.23732,3089.0,3088.4,0.00154129]
[1720614921348,3.23739,3089.0,3088.4,0.00154129]
[1720614921548,3.23752,3088.8,3088.4,0.00154129]
[1720614921780,3.2374,3088.9,3088.4,0.00154129]
[1720614922089,6.47562,3088.5,3088.4,0.00154129]
[1720614922303,3.23781,3088.5,3088.4,0.00154129]
[1720614922661,3.23763,3088.7,3088.4,0.00154129]
[1720614922891,3.23781,3088.5,3088.4,0.00154129]
[1720614923289,9.47562,3088.5,3088.4,0.00154129]
[1720614923691,12.71343,3088.5,3088.4,0.00154129]
[1720614923958,9.47562,3088.5,3088.4,0.00154129]
[1720614924159,3.23781,3088.5,3088.4,0.00154129]
[1720614924393,3.23715,3089.2,3088.4,0.00153934]
[1720614924593,2.4114,3089.6,3088.4,0.00153934]
[1720614924594,3.23749,3088.9,3088.4,0.00153934]
[1720614924803,3.0,3088.8,3088.4,0.00153934]
[1720614925007,3.23766,3088.7,3088.4,0.00153934]
[1720614925295,6.47562,3088.5,3088.4,0.00153934]
[1720614925802,12.71343,3088.5,3088.4,0.00153934]
[1720614926159,9.47562,3088.5,3088.4,0.00153934]
[1720614926579,3.0,3088.5,3088.4,0.00153934]
[1720614926810,3.23781,3088.5,3088.4,0.00153934]
[1720614926956,3.0,3088.5,3088.4,0.00153934]
[1720614927160,3.23739,3089.0,3088.4,0.00153934]
[1720614927389,6.47562,3088.5,3088.4,0.00153934]
[1720614927589,3.23771,3088.7,3088.4,0.00153934]
[1720614927810,3.23771,3088.7,3087.1,0.1127762]
[1720614927811,3.24187,3084.7,3083.3,3.24321]
[1720614927999,4.73975,3086.7,3083.3,3.24321]
[1720614928000,0.3802,3086.8,3084.1,2.2612]
[1720614928296,0.3802,3086.8,3085.0,3.24141]
[1720614928297,3.24003,3086.4,3085.0,3.24141]
[1720614928593,3.23971,3086.7,3085.1,3.30609894]
[1720614928798,3.0,3086.8,3085.1,3.30609894]
[1720614928799,3.0,3086.8,3085.2,5.74018]
[1720614929099,3.23971,3086.7,3085.5,3.0]
[1720614929398,3.24,3086.5,3085.5,3.0]
[1720614929570,3.23954,3086.9,3085.5,3.0]
[1720614929768,3.0,3086.4,3085.5,3.0]
[1720614929978,3.0,3086.7,3085.5,3.0]
[1720614930160,3.23979,3086.7,3085.5,3.54989]
[1720614930359,3.2395,3086.9,3085.5,3.54989]
[1720614930360,3.2395,3086.9,3085.6,3.24082]
[1720614930772,3.23899,3087.4,3086.2,3.24022]
[1720614931004,0.50808784,3087.7,3086.6,3.0]
[1720614931206,0.50808784,3087.7,3086.3,2.3969]
[1720614931207,3.23902,3087.4,3086.3,2.3969]
[1720614931415,3.74680784,3087.7,3085.5,0.54989]
[1720614931615,3.23967,3086.8,3085.6,3.38904505]
[1720614931815,0.01640512,3086.4,3085.8,6.24064]
[1720614932018,0.01640512,3086.4,3085.9,3.39040948]
[1720614932177,0.01640512,3086.4,3085.9,0.14994948]
[1720614932383,0.01640512,3086.4,3085.5,3.79077]
[1720614932621,0.01640512,3086.4,3085.5,0.54989]
[1720614933317,0.01640512,3086.0,3085.6,0.14998779]
[1720614934024,3.952,3088.3,3085.6,3.06480219]
[1720614934204,3.23886,3087.5,3086.0,3.24037]
[1720614934400,3.23907,3087.4,3086.1,3.39022589]
[1720614934731,3.952,3088.3,3086.2,0.33902259]
[1720614934913,3.23866,3087.7,3086.7,2.4788]
[1720614935224,3.2382,3088.2,3086.9,3.23947]
[1720614935424,3.952,3088.9,3086.8,0.14981526]
[1720614935629,2.4165,3089.3,3087.3,3.23905]
[1720614935630,3.23795,3088.4,3087.3,3.23905]
[1720614935799,3.2376,3088.7,3087.4,0.14972905]
[1720614936195,3.23751,3088.8,3087.4,0.55337497]
[1720614936440,3.23698,3089.3,3087.7,3.0]
[1720614936651,3.23698,3089.3,3088.1,3.23822]
[1720614936858,3.23729,3089.0,3088.2,0.14961416]
[1720614936997,3.952,3089.9,3087.6,2.3541]
[1720614937353,3.23824,3088.1,3087.7,0.14968596]
[1720614937803,3.23724,3089.1,3087.8,0.1496716]
[1720614937804,3.23848,3087.9,3087.8,0.1496716]
[1720614938006,3.23791,3088.5,3086.4,3.0]
[1720614938007,3.23927,3087.2,3086.4,3.0]
[1720614938206,3.23925,3087.2,3086.5,0.13837213]
[1720614938416,3.23887,3087.5,3086.5,0.13837213]
[1720614938633,3.23916,3087.3,3086.5,0.13837213]
[1720614939510,3.23936,3087.1,3086.5,0.13837213]
[1720614940237,3.23872,3087.7,3086.5,0.13837213]
[1720614940695,3.23847,3087.9,3086.5,4.0000739]
[1720614940890,3.23823,3088.2,3087.0,3.2393]
[1720614941236,3.23831,3088.1,3087.1,0.13857589]
[1720614941422,3.23765,3088.7,3085.4,2.3525]
[1720614941423,3.23918,3087.2,3085.4,2.3525]
[1720614941626,3.24073,3085.8,3085.5,0.13445864]
[1720614941795,3.23981,3086.6,3085.4,5.3525]
[1720614942000,3.24,3086.5,3085.5,0.12526762]
[1720614942228,3.24015,3086.3,3085.5,0.12526762]
[1720614943195,3.24023,3086.2,3085.5,0.12526762]
[1720614943395,3.24056,3085.9,3085.5,0.12526762]
[1720614943596,3.0,3086.4,3084.6,2.2906]
[1720614943797,3.0,3087.1,3084.7,0.12538271]
[1720614944023,3.24081,3085.7,3084.7,0.12538271]
[1720614944738,3.24055,3085.9,3084.7,0.19020801]
[1720614944939,3.0,3086.3,3084.8,0.06481983]
[1720614945097,3.23944,3087.0,3085.1,3.0]
[1720614945303,3.2401,3086.4,3085.2,3.60605178]
[1720614945505,3.2401,3086.4,3085.3,0.06481181]
[1720614945753,3.24014,3086.3,3085.3,0.06481181]
[1720614945909,3.24014,3086.3,3085.4,0.125282]
[1720614946646,3.24003,3086.4,3085.4,0.125282]
[1720614946831,3.2397,3086.7,3085.5,0.06481178]
[1720614947009,3.23986,3086.6,3085.6,0.12525324]
[1720614947209,3.2397,3086.8,3085.7,2.2535]
[1720614947405,3.23993,3086.5,3085.8,0.12522447]
[1720614947606,3.23993,3086.5,3085.7,2.2535]
[1720614947847,3.24013,3086.3,3085.8,0.12522447]
[1720614948157,3.24013,3086.3,3085.7,2.2535]
[1720614948504,3.24013,3086.3,3085.8,0.12522447]
[1720614948704,6.23958,3086.9,3085.8,0.12522447]
[1720614948900,3.24054,3085.9,3085.1,2.472]
[1720614949140,3.24097,3085.5,3085.1,2.472]
[1720614949608,3.24081,3085.7,3085.1,2.472]
[1720614949808,3.24059,3085.9,3085.2,0.12116526]
[1720614950037,3.24026,3086.2,3085.2,0.12116526]
[1720614950251,3.24045,3086.0,3085.2,0.12116526]
[1720614950463,3.0,3086.9,3085.3,0.12145561]
[1720614950664,3.23892,3087.5,3085.1,1.73316526]
[1720614950665,3.24077,3085.7,3085.1,1.73316526]
[1720614950821,3.24117,3085.3,3085.2,0.11743115]
[1720614951155,3.24093,3085.6,3085.2,0.005]
[1720614951341,3.24117,3085.3,3085.2,0.005]
[1720614951729,3.24075,3085.7,3085.2,0.005]
[1720614952250,3.24117,3085.3,3085.2,0.005]
[1720614952639,6.48234,3085.3,3085.2,0.005]
[1720614952841,3.24117,3085.3,3085.2,0.005]
[1720614953548,6.48234,3085.3,3085.2,0.005]
[1720614954019,12.96468,3085.3,3085.2,0.005]
[1720614954222,12.96468,3085.3,3084.0,0.1127762]
[1720614954223,3.24243,3084.1,3084.0,0.1127762]
[1720614955519,6.48486,3084.1,3084.0,0.1127762]
[1720614955931,3.24198,3084.6,3084.0,0.1127762]
[1720614956135,0.3229,3085.4,3084.0,0.1127762]
[1720614956323,2.4041,3085.6,3084.0,0.1127762]
[1720614956324,3.24234,3084.2,3084.0,0.1127762]
[1720614956528,3.24198,3084.6,3084.0,0.1127762]
[1720614956843,3.24172,3084.8,3084.0,0.1127762]
[1720614957026,3.24103,3085.5,3084.1,2.39134752]
[1720614957230,3.24082,3085.7,3084.3,3.24222]
[1720614957458,3.24127,3085.3,3084.1,2.3265]
[1720614957626,3.24186,3084.7,3084.1,2.3265]
[1720614957959,0.01640484,3084.4,3084.1,2.3265]
[1720614958139,0.01640484,3084.4,3084.2,0.11049098]
[1720614958661,3.2418,3084.7,3084.2,0.11049098]
[1720614958826,0.01640484,3084.3,3084.0,0.1127762]
[1720614959021,0.01640484,3084.3,3084.1,0.11050538]
[1720614959764,3.952,3086.1,3084.1,3.35293538]
[1720614959765,0.01640484,3084.2,3084.1,3.35293538]
[1720614960062,0.01640484,3084.2,3084.1,0.11050538]
[1720614960767,0.01640484,3084.2,3084.1,8.98726538]
[1720614960933,3.2407,3085.8,3084.7,3.24171]
[1720614960934,3.24066,3085.8,3084.7,3.24171]
[1720614961131,6.48054,3086.2,3084.8,3.24164]
[1720614961369,3.24069,3085.8,3084.9,0.324164]
[1720614961670,3.24076,3085.7,3085.0,0.11037585]
[1720614961835,3.24076,3085.7,3084.6,3.24184]
[1720614962167,3.24007,3086.4,3084.8,3.0]
[1720614962168,3.24008,3086.4,3084.8,3.0]
[1720614962468,3.23964,3086.8,3085.2,3.0]
[1720614962654,3.23964,3086.8,3085.7,3.24067]
[1720614962967,3.2394,3087.0,3086.0,2.2519]
[1720614963171,3.2394,3087.0,3086.0,5.49232]
[1720614963333,3.2394,3087.0,3086.1,3.35053764]
[1720614963529,3.2391,3087.3,3086.3,3.24011]
[1720614963831,3.23879,3087.6,3086.4,0.11004009]
[1720614964043,3.23916,3087.3,3086.4,0.11004009]
[1720614964245,3.23916,3087.3,3086.2,3.24016]
[1720614964444,3.23876,3087.6,3086.4,3.23995]
[1720614964630,3.23859,3087.8,3086.7,3.2397]
[1720614964828,3.23867,3087.7,3086.8,0.1099826]
[1720614965069,3.23909,3087.3,3086.0,5.4923]
[1720614965367,3.23935,3087.1,3086.1,0.11008322]
[1720614965535,3.2394,3087.0,3086.1,0.11008322]
[1720614965740,3.23969,3086.8,3086.1,0.11008322]
[1720614966074,3.23969,3086.8,3085.7,3.24075]
[1720614966271,3.23969,3086.8,3085.8,0.11012636]
[1720614966480,3.23969,3086.8,3085.4,2.4914]
[1720614966632,3.23913,3087.3,3085.4,2.4914]
[1720614966633,3.0,3087.3,3085.5,0.1101695]
[1720614966834,3.2405,3086.0,3085.5,0.1101695]
[1720614967035,3.24051,3086.0,3084.9,3.24155]
[1720614967268,3.24055,3085.9,3085.0,0.11024143]
[1720614967471,3.2395,3086.9,3085.3,3.24117]
[1720614967472,3.24018,3086.3,3085.3,3.24117]
[1720614967634,3.23942,3087.0,3085.7,3.24066]
[1720614967840,3.23922,3087.2,3085.8,2.67071231]
[1720614968044,3.23922,3087.2,3086.1,3.2403]
[1720614968275,3.2388,3087.6,3086.2,3.34986768]
[1720614968459,3.23907,3087.3,3086.2,0.10964768]
[1720614968643,3.23947,3087.0,3085.9,3.24053]
[1720614968840,3.23921,3087.2,3086.0,0.10966918]
[1720614969045,3.23893,3087.5,3086.2,3.24022]
[1720614969383,3.23858,3087.8,3086.3,3.34971605]
[1720614969543,3.23878,3087.6,3086.5,3.23984]
[1720614969874,3.23858,3087.8,3086.6,0.17436751]
[1720614970054,3.23793,3088.4,3086.8,2.406]
[1720614970254,3.23851,3087.9,3086.9,0.1741018]
[1720614970458,3.23824,3088.1,3086.9,0.1741018]
[1720614970459,3.23824,3088.1,3086.9,3.4135818]
[1720614970661,3.23812,3088.3,3087.2,3.23916]
[1720614970855,3.23812,3088.3,3087.3,0.17403632]
[1720614971043,3.23782,3088.5,3087.4,3.2389]
[1720614971252,3.23804,3088.3,3087.5,0.10912476]
[1720614971580,3.23714,3089.2,3086.8,5.6455]
[1720614971581,3.2383,3088.1,3086.8,5.6455]
[1720614971752,3.23841,3088.0,3087.6,0.10911039]
[1720614971957,3.23841,3088.0,3087.0,3.2393]
[1720614972176,3.23795,3088.4,3087.7,0.10909603]
[1720614972345,3.23782,3088.5,3087.3,3.23906]
[1720614972545,3.2381,3088.3,3087.3,3.23906]
[1720614972945,3.23782,3088.5,3087.3,3.23906]
[1720614973168,3.23767,3088.7,3087.5,3.23876]
[1720614973370,3.23636,3089.9,3087.4,0.10913912]
[1720614973371,3.23738,3089.0,3087.4,0.10913912]
[1720614973579,3.23773,3088.6,3087.6,0.10911039]
[1720614973779,3.23773,3088.6,3087.5,0.10912476]
[1720614973780,3.2383,3088.1,3087.5,0.10912476]
[1720614973977,3.23811,3088.3,3087.7,0.10909603]
[1720614974180,3.23796,3088.4,3087.6,0.10911039]
[1720614974380,3.18767,3088.7,3087.8,0.10908167]
[1720614974559,3.18767,3088.7,3087.5,3.23885]
[1720614974764,3.23812,3088.3,3087.9,0.10906731]
[1720614974947,3.23812,3088.3,3087.3,3.23906]
[1720614975143,3.2374,3088.9,3087.5,3.23885]
[1720614975144,3.23763,3088.7,3087.5,3.23885]
[1720614975612,3.23741,3088.9,3087.7,3.2386]
[1720614975919,3.23785,3088.5,3087.8,2.45525217]
[1720614976203,3.23785,3088.5,3087.8,0.10855217]
[1720614976204,3.23809,3088.3,3087.8,0.10855217]
[1720614976408,3.23775,3088.6,3087.8,0.10855217]
[1720614976704,3.23807,3088.3,3087.9,0.10853781]
[1720614977208,3.23807,3088.3,3087.2,2.3467]
[1720614977602,3.23897,3087.4,3087.3,0.10862399]
[1720614977802,3.23856,3087.8,3087.3,0.10862399]
[1720614977969,3.23876,3087.6,3086.5,5.49654]
[1720614978171,3.23918,3087.2,3086.5,2.2567]
[1720614978507,3.23834,3088.0,3086.6,0.10154306]
[1720614978669,3.0,3087.9,3086.6,0.10154306]
[1720614978868,3.0,3087.9,3086.0,2.2567]
[1720614978869,3.2386,3087.8,3086.1,0.06479377]
[1720614979082,3.23845,3087.9,3086.8,3.23959]
[1720614979282,3.23863,3087.8,3086.9,0.09814709]
[1720614979467,3.23863,3087.8,3086.6,3.23974]
[1720614979671,3.23886,3087.5,3086.7,0.09817583]
[1720614979867,3.23886,3087.5,3086.5,3.23989]
[1720614980106,3.23886,3087.5,3086.6,0.09819021]
[1720614980482,3.23908,3087.3,3086.0,5.49711]
[1720614980818,3.23937,3087.1,3086.1,0.09826208]
[1720614980994,3.23955,3086.9,3086.1,0.09826208]
[1720614981193,3.2397,3086.7,3086.1,0.09826208]
[1720614981597,3.23955,3086.9,3086.1,0.09826208]
[1720614981794,3.23965,3086.8,3086.1,0.09826208]
[1720614982120,3.23992,3086.5,3086.1,0.09826208]
[1720614982675,6.48046,3086.2,3086.1,0.09826208]
[1720614982871,5.4423,3086.9,3084.7,2.3327]
[1720614983116,3.24096,3085.5,3084.8,0.09805583]
[1720614983419,3.24086,3085.6,3084.8,0.09805583]
[1720614983908,3.24055,3085.9,3084.8,0.09805583]
[1720614984313,3.24016,3086.3,3084.8,0.09805583]
[1720614984471,3.23961,3086.8,3085.2,2.4531]
[1720614984677,3.23991,3086.6,3085.3,3.88145002]
[1720614984871,6.47979,3086.6,3085.5,3.24086]
[1720614985078,3.23988,3086.6,3085.6,0.09507716]